bitfinex/quotes_ETHUSD_20250821
["timestamp","ask_amount","ask_price","bid_price","bid_amount"]
[1755757280936,15.50134468,4297.9,4297.8,0.7621]
[1755757281136,11.88934468,4297.9,4297.8,0.7621]
[1755757281348,15.49834468,4297.9,4297.8,0.7621]
[1755757281646,11.88934468,4297.9,4297.8,0.7621]
[1755757281955,15.49834468,4297.9,4297.8,0.7621]
[1755757282543,14.99911405,4297.9,4297.8,0.7621]
[1755757283246,14.99911405,4297.9,4297.8,0.3081]
[1755757283457,14.99911405,4297.9,4297.8,0.7621]
[1755757283665,11.39111405,4297.9,4297.8,0.7621]
[1755757283859,14.99811405,4297.9,4297.8,0.7621]
[1755757284442,11.39111405,4297.9,4297.8,0.7621]
[1755757284652,14.99811405,4297.9,4297.8,0.7621]
[1755757285357,11.39111405,4297.9,4297.8,0.7621]
[1755757285578,14.99711405,4297.9,4297.8,0.7621]
[1755757286758,11.39111405,4297.9,4297.8,0.3081]
[1755757286944,14.99611405,4297.9,4297.8,0.3081]
[1755757287878,15.29081405,4297.9,4297.8,0.021]
[1755757288469,14.99611405,4297.9,4297.8,0.021]
[1755757289660,14.99611405,4297.9,4297.8,0.3081]
[1755757290796,14.99611405,4297.9,4297.8,0.021]
[1755757290797,15.78862708,4297.9,4297.8,0.021]
[1755757291180,16.00472282,4297.9,4297.8,0.021]
[1755757292399,3.66,4297.8,4297.4,0.001]
[1755757292608,0.66,4297.8,4297.7,0.2871]
[1755757292770,4.377,4297.8,4297.4,0.001]
[1755757292972,0.66,4297.4,4296.9,0.001]
[1755757293171,0.776,4297.0,4296.9,0.001]
[1755757293384,7.378,4297.0,4296.9,0.2881]
[1755757293582,7.47134,4297.0,4296.9,0.2881]
[1755757293875,15.08645405,4297.0,4296.9,0.2881]
[1755757295788,15.08645405,4297.0,4296.9,0.001]
[1755757296104,0.66,4296.8,4294.6,0.1168]
[1755757296268,7.61511405,4295.9,4295.7,0.3115]
[1755757296471,7.61511405,4295.9,4295.8,0.3071]
[1755757296472,11.33111405,4295.9,4295.8,0.3071]
[1755757296707,11.33111405,4295.9,4295.8,0.6186]
[1755757297200,11.33111405,4295.9,4295.8,0.3071]
[1755757297970,15.28581405,4295.9,4295.8,0.02]
[1755757298282,15.28581405,4295.9,4291.4,0.2333]
[1755757298283,0.66,4295.7,4294.0,0.3115]
[1755757298484,7.73191405,4294.9,4293.4,0.1168]
[1755757298674,11.33391405,4294.9,4294.8,0.3071]
[1755757298879,11.33391405,4294.9,4294.8,0.6186]
[1755757299790,11.33391405,4294.9,4294.8,0.3071]
[1755757299986,11.33391405,4294.9,4294.8,0.6186]
[1755757300190,3.7188,4294.9,4294.8,0.6186]
[1755757300388,11.33391405,4294.9,4294.8,0.6186]
[1755757300590,11.33391405,4294.9,4294.8,0.3071]
[1755757301105,11.33391405,4294.9,4294.8,0.3081]
[1755757301285,11.21711405,4294.9,4294.8,0.3081]
[1755757301808,10.61511405,4294.9,4294.8,0.3307]
[1755757302179,14.22511405,4294.9,4294.8,0.3307]
[1755757303292,6.61,4294.9,4294.8,0.3307]
[1755757303490,0.66,4295.9,4294.8,0.6422]
[1755757303690,0.4283,4296.0,4294.9,0.3115]
[1755757303691,7.61511405,4295.2,4294.9,0.3115]
[1755757303904,3.61,4295.1,4294.9,0.3115]
[1755757304293,7.61511405,4295.2,4295.0,0.6212]
[1755757304495,3.4283,4296.0,4295.0,0.3097]
[1755757304496,11.22611405,4295.1,4295.0,0.3097]
[1755757305987,7.61511405,4295.1,4295.0,0.3097]
[1755757306191,11.22611405,4295.1,4295.0,0.3097]
[1755757306516,0.4283,4296.0,4295.0,0.3097]
[1755757306719,7.61511405,4295.4,4295.0,0.6212]
[1755757306894,3.61,4295.3,4295.1,0.3115]
[1755757307098,3.61,4295.3,4295.2,0.6212]
[1755757307805,3.609,4295.3,4295.2,0.6212]
[1755757308319,7.61511405,4295.4,4295.2,0.6212]
[1755757308504,7.61511405,4295.4,4295.2,0.3097]
[1755757308711,3.608,4295.3,4295.2,0.3097]
[1755757309021,7.61511405,4295.4,4295.2,0.3097]
[1755757309321,7.61511405,4295.4,4295.3,0.3115]
[1755757309515,11.22311405,4295.4,4295.3,0.6212]
[1755757310896,11.22311405,4295.4,4294.8,0.021]
[1755757311101,7.61511405,4294.9,4294.8,0.021]
[1755757311295,7.73191405,4294.9,4294.8,0.3307]
[1755757312914,7.73191405,4294.9,4294.8,0.6422]
[1755757312915,0.1168,4294.9,4294.8,0.6422]
[1755757314316,3.605,4295.2,4294.8,0.6422]
[1755757314317,0.3097,4296.3,4294.8,8.25731405]
[1755757314644,3.606,4296.5,4295.1,7.61511405]
[1755757314835,3.606,4296.5,4295.2,0.3115]
[1755757315013,7.61511405,4296.3,4295.2,0.3115]
[1755757315201,7.61511405,4296.3,4296.2,0.3097]
[1755757317322,11.22111405,4296.3,4296.2,0.3097]
[1755757317695,7.61511405,4296.3,4296.2,0.3097]
[1755757317903,8.36371405,4296.3,4295.3,0.17249438]
[1755757318201,7.61511405,4295.8,4295.2,0.3115]
[1755757318416,7.61511405,4295.8,4295.7,0.3097]
[1755757319333,3.604,4296.0,4295.7,0.3097]
[1755757319524,11.21911405,4296.0,4295.7,0.3097]
[1755757320756,11.21911405,4296.0,4295.0,0.3115]
[1755757320974,11.21911405,4296.0,4295.1,0.41582314]
[1755757321462,11.21911405,4296.0,4295.1,0.72732314]
[1755757322027,0.002,4296.3,4295.9,0.3097]
[1755757322268,3.603,4296.3,4295.9,0.3097]
[1755757322649,11.21811405,4296.3,4295.9,0.3097]
[1755757323347,7.61511405,4296.0,4295.2,0.17630057]
[1755757323541,7.61511405,4296.0,4295.0,0.3115]
[1755757323747,7.61511405,4295.7,4295.0,0.3115]
[1755757323943,3.6,4296.1,4295.9,0.3097]
[1755757324370,0.116,4296.0,4295.9,0.3097]
[1755757326602,0.116,4296.0,4295.9,0.6212]
[1755757327738,0.116,4296.0,4295.9,1.47043737]
[1755757328149,0.002,4296.3,4295.9,1.47043737]
[1755757328359,0.002,4296.3,4296.0,0.3115]
[1755757328564,0.002,4296.3,4296.2,0.3097]
[1755757329072,0.002,4296.3,4296.2,0.6212]
[1755757329260,0.002,4296.3,4296.2,0.76591594]
[1755757331254,0.002,4296.3,4296.2,0.78919232]
[1755757331658,0.002,4296.3,4296.2,0.88191594]
[1755757331847,0.002,4296.3,4296.2,4.47791594]
[1755757332047,0.002,4296.3,4296.2,7.47791594]
[1755757333893,0.002,4296.3,4296.2,3.26071594]
[1755757334278,0.002,4296.3,4296.2,3.14471594]
[1755757334590,0.002,4296.3,4296.2,0.14471594]
[1755757334790,0.002,4296.3,4296.2,0.44551594]
[1755757335090,0.002,4296.3,4296.2,0.14471594]
[1755757335289,0.002,4296.3,4296.2,4.03851594]
[1755757336689,0.002,4296.3,4296.2,3.73771594]
[1755757337194,0.002,4296.3,4296.2,4.03851594]
[1755757341562,0.002,4296.3,4296.2,7.03851594]
[1755757345514,0.002,4296.3,4296.2,9.67765431]
[1755757345680,0.002,4296.3,4296.2,10.45365431]
[1755757346014,0.002,4296.3,4296.2,10.56965431]
[1755757347090,0.002,4296.3,4296.2,17.87226836]
[1755757347289,0.002,4296.3,4296.2,11.29262999]
[1755757348013,0.7821,4296.3,4296.2,3.85271594]
[1755757348311,0.7821,4296.3,4296.2,14.46782999]
[1755757348312,0.002,4296.3,4296.2,14.46782999]
[1755757348710,0.002,4296.3,4296.2,10.87582999]
[1755757348913,0.002,4296.3,4296.2,14.46782999]
[1755757349114,0.002,4296.3,4296.2,10.87582999]
[1755757349284,0.002,4296.3,4296.2,14.46782999]
[1755757349712,0.002,4296.3,4296.2,14.76862999]
[1755757352828,0.002,4296.3,4296.2,14.86193499]
[1755757353191,0.002,4296.3,4296.2,14.56113499]
[1755757353417,0.002,4296.3,4296.2,14.76862999]
[1755757355507,0.002,4296.3,4296.2,14.46782999]
[1755757355508,0.7821,4296.3,4296.2,14.46782999]
[1755757357211,0.7821,4296.3,4296.2,18.65782999]
[1755757357212,0.002,4296.3,4296.2,18.65782999]
[1755757362453,0.7722,4296.3,4296.2,18.65782999]
[1755757362638,0.7722,4296.3,4296.2,6.73671594]
[1755757363658,0.7722,4296.3,4296.2,6.592]
[1755757366348,0.7722,4296.3,4296.2,3.592]
[1755757366742,0.3144,4296.3,4296.2,3.592]
[1755757366937,0.002,4296.3,4296.2,3.592]
[1755757367937,0.3144,4296.3,4296.2,3.592]
[1755757368142,0.7722,4296.3,4296.2,3.592]
[1755757371064,0.002,4296.3,4296.2,3.592]
[1755757371266,0.7722,4296.3,4296.2,3.9628]
[1755757372965,0.002,4296.3,4296.2,3.9628]
[1755757373867,0.3144,4296.3,4296.2,3.9628]
[1755757374044,0.7722,4296.3,4296.2,3.9628]
[1755757374566,0.002,4296.3,4296.2,3.9628]
[1755757377168,0.7722,4296.3,4296.2,3.9628]
[1755757377341,0.7722,4296.3,4296.2,3.591]
[1755757377668,0.7722,4296.3,4295.6,0.116]
[1755757377669,0.8882,4296.3,4295.6,0.116]
[1755757377832,0.8882,4296.3,4295.7,3.591]
[1755757377833,0.4578,4296.2,4295.7,3.591]
[1755757378033,0.3124,4295.8,4295.7,6.591]
[1755757378237,0.7702,4295.8,4295.7,6.591]
[1755757378449,0.7702,4295.8,4295.7,3.591]
[1755757381069,0.7702,4295.8,4295.3,0.001]
[1755757381268,7.61511405,4295.6,4295.4,3.59]
[1755757381476,0.7702,4295.5,4295.4,3.59]
[1755757381784,0.887,4295.5,4295.3,0.001]
[1755757381968,0.4578,4295.4,4295.3,0.001]
[1755757382152,0.7702,4295.4,4295.3,0.001]
[1755757387892,1.4302,4295.4,4295.3,0.001]
[1755757388101,4.4302,4295.4,4295.3,0.001]
[1755757388567,8.0212,4295.4,4295.3,0.001]
[1755757390696,4.4302,4295.4,4295.3,0.001]
[1755757391193,8.0212,4295.4,4295.3,0.001]
[1755757392092,4.4302,4295.4,4295.3,0.001]
[1755757392392,8.0212,4295.4,4295.3,0.001]
[1755757393270,4.4302,4295.4,4295.3,0.001]
[1755757393678,8.0212,4295.4,4295.3,0.001]
[1755757394999,0.3124,4295.4,4295.3,0.001]
[1755757395373,0.8742,4295.4,4295.3,0.001]
[1755757396714,0.1168,4295.4,4295.3,0.001]
[1755757397564,0.1168,4295.4,4295.3,7.91031405]
[1755757397770,0.4253,4295.4,4295.3,0.001]
[1755757398291,0.1168,4295.4,4295.3,0.001]
[1755757398502,0.1168,4295.4,4295.3,0.2952]
[1755757398883,0.1168,4295.4,4295.3,0.31848126]
[1755757399081,0.002,4296.3,4295.3,0.6067]
[1755757399313,0.1168,4295.4,4295.3,0.6067]
[1755757399474,0.1168,4295.4,4295.3,1.4289814]
[1755757399677,0.1168,4295.4,4295.3,1.45226266]
[1755757399876,0.1168,4295.4,4295.3,1.4289814]
[1755757400298,0.1168,4295.4,4295.3,0.001]
[1755757400488,0.4253,4295.4,4295.3,0.001]
[1755757400689,0.8703,4295.4,4295.3,0.001]
[1755757401305,0.1168,4295.4,4295.3,0.2952]
[1755757401822,0.002,4296.3,4295.3,7.93359531]
[1755757402020,0.002,4296.3,4296.2,7.61511405]
[1755757402328,0.002,4296.3,4296.2,0.2942]
[1755757402497,0.002,4296.3,4295.9,3.59]
[1755757403392,0.002,4296.3,4296.2,0.2942]
[1755757403621,0.002,4296.3,4296.2,7.90931405]
[1755757403801,0.002,4296.3,4296.2,9.4042232]
[1755757404743,0.002,4296.3,4296.2,1.47760915]
[1755757405097,0.002,4296.3,4295.9,4.07776258]
[1755757405098,0.3105,4296.3,4295.4,1.09345953]
[1755757405332,0.7555,4296.3,4295.5,6.59]
[1755757405523,0.3105,4296.3,4295.5,3.59]
[1755757405723,0.445,4296.2,4295.5,3.59]
[1755757406219,0.445,4296.2,4295.6,3.59]
[1755757406434,0.3085,4295.7,4295.3,0.001]
[1755757406732,0.3085,4295.7,4295.3,3.591]
[1755757406903,0.445,4295.7,4295.3,3.591]
[1755757408128,0.445,4296.0,4295.3,3.591]
[1755757409836,0.445,4296.0,4295.4,0.02328071]
[1755757411743,0.1168,4295.5,4295.4,0.02328071]
[1755757411962,0.1168,4295.5,4295.4,0.2942]
[1755757412656,0.1168,4295.5,4295.3,3.591]
[1755757414718,0.7535,4295.4,4295.3,3.591]
[1755757416655,0.66,4295.3,4295.1,0.001]
[1755757416818,11.04041405,4295.2,4295.1,0.001]
[1755757417022,12.14541405,4295.2,4295.1,0.001]
[1755757419539,4.5303,4295.2,4295.1,0.001]
[1755757419756,12.14541405,4295.2,4295.1,0.001]
[1755757420732,4.5303,4295.2,4295.1,0.001]
[1755757423664,12.14541405,4295.2,4295.1,0.001]
[1755757426658,15.74941405,4295.2,4295.1,0.001]
[1755757427359,12.14541405,4295.2,4295.1,0.001]
[1755757427570,15.74841405,4295.2,4295.1,0.001]
[1755757436567,15.74041405,4295.2,4295.1,0.001]
[1755757437307,12.14541405,4295.2,4295.1,0.001]
[1755757437509,11.04041405,4295.2,4295.1,0.001]
[1755757437816,15.08091405,4295.2,4295.1,0.001]
[1755757439713,14.63341405,4295.2,4295.1,0.001]
[1755757439922,15.07991405,4295.2,4295.1,0.001]
[1755757440129,15.73991405,4295.2,4295.1,0.001]
[1755757440492,8.1248,4295.2,4295.1,0.001]
[1755757440692,15.73991405,4295.2,4295.1,0.001]
[1755757442517,7.6783,4295.2,4295.1,0.001]
[1755757442719,12.14691405,4295.2,4295.1,0.001]
[1755757442912,15.73891405,4295.2,4295.1,0.001]
[1755757444924,11.70041405,4295.2,4295.1,0.001]
[1755757445136,15.73891405,4295.2,4295.1,0.001]
[1755757446130,16.23763874,4295.2,4295.1,0.001]
[1755757447523,16.45430934,4295.2,4295.1,0.001]
[1755757450531,16.58424038,4295.2,4295.1,0.001]
[1755757450717,16.80078364,4295.2,4295.1,0.001]
[1755757451123,3.66,4295.1,4294.9,0.001]
[1755757451325,5.41322633,4295.0,4294.9,0.001]
[1755757451524,8.41322633,4295.0,4294.9,0.001]
[1755757451713,8.84982633,4295.0,4294.9,0.001]
[1755757452109,8.71989529,4295.0,4294.9,0.001]
[1755757452311,8.71989529,4295.0,4293.8,0.02]
[1755757452312,3.66,4294.9,4293.8,0.02]
[1755757452532,11.70781405,4293.9,4293.8,0.02]
[1755757452732,15.29981405,4293.9,4293.8,0.02]
[1755757452936,15.73641405,4293.9,4293.8,0.02]
[1755757453722,15.73641405,4293.9,4293.8,0.021]
[1755757453946,16.2347101,4293.9,4293.8,0.021]
[1755757455361,15.73641405,4293.9,4293.8,0.021]
[1755757455769,4.0927,4293.9,4293.8,0.021]
[1755757455940,15.29981405,4293.9,4293.8,0.021]
[1755757456141,3.7088,4293.9,4293.8,0.6227]
[1755757457041,3.7088,4293.9,4293.8,0.3112]
[1755757457445,0.1168,4293.9,4293.8,0.3112]
[1755757457659,0.1168,4293.9,4293.8,0.6227]
[1755757458061,3.7088,4293.9,4293.8,0.6227]
[1755757459977,0.1168,4293.9,4293.8,0.6227]
[1755757460181,3.7088,4293.9,4293.8,0.6227]
[1755757460374,0.1168,4293.9,4293.8,0.6227]
[1755757464169,0.1168,4293.9,4293.8,0.3112]
[1755757464542,0.1168,4293.9,4293.8,0.6227]
[1755757466765,0.1168,4293.9,4293.8,1.44648141]
[1755757470350,0.1168,4293.9,4293.8,1.13498141]
[1755757470541,0.1168,4293.9,4293.8,0.3112]
[1755757471352,0.1168,4293.9,4293.8,0.6227]
[1755757471680,0.1168,4293.9,4293.8,0.3112]
[1755757474676,0.1168,4293.9,4293.8,0.021]
[1755757474980,0.1168,4293.9,4293.8,0.3112]
[1755757475190,0.1168,4293.9,4293.8,0.70142]
[1755757481872,0.1168,4293.9,4293.8,8.62803405]
[1755757482066,0.1168,4293.9,4293.8,1.01292]
[1755757483675,0.002,4295.3,4293.8,4.03620939]
[1755757483676,0.1168,4294.2,4293.8,4.03620939]
[1755757483893,0.1168,4294.2,4294.1,10.61511405]
[1755757484099,0.002,4295.3,4294.2,3.0]
[1755757484291,0.002,4295.3,4294.3,0.02328668]
[1755757484292,0.1168,4294.4,4294.3,0.02328668]
[1755757484486,0.1168,4294.4,4294.3,0.33208668]
[1755757484802,0.1168,4294.4,4294.3,0.64358668]
[1755757485007,0.1168,4294.4,4294.3,1.36704535]
[1755757485481,0.1168,4294.4,4294.3,11.9821594]
[1755757485805,0.1168,4294.4,4294.3,11.95887272]
[1755757486007,0.1168,4294.4,4294.3,7.62325867]
[1755757487080,0.1168,4294.4,4294.3,7.93475867]
[1755757487283,0.1168,4294.4,4294.3,7.62325867]
[1755757487478,0.1168,4294.8,4294.3,7.93475867]
[1755757487669,0.1168,4294.8,4294.4,9.1995247]
[1755757487998,0.4482,4294.7,4294.5,3.59]
[1755757488191,0.4482,4295.0,4294.5,3.59]
[1755757488403,0.1168,4294.6,4294.5,3.59]
[1755757488611,0.1168,4294.6,4294.5,3.8988]
[1755757488776,0.1168,4294.6,4294.5,4.83721031]
[1755757491002,0.1168,4294.6,4294.5,4.52841031]
[1755757492231,0.1168,4294.6,4294.5,4.83721031]
[1755757493543,0.1168,4294.6,4294.5,12.45232436]
[1755757494059,0.1168,4294.6,4294.5,12.76382436]
[1755757494628,0.1168,4294.6,4294.5,12.45232436]
[1755757494829,0.1168,4294.6,4294.5,12.76382436]
[1755757495232,0.1168,4294.6,4294.5,12.45232436]
[1755757495535,0.1168,4294.6,4294.5,4.52841031]
[1755757495742,0.8784,4294.6,4294.5,4.52841031]
[1755757496313,0.4302,4294.6,4294.5,4.52841031]
[1755757496510,0.1168,4294.6,4294.5,4.52841031]
[1755757498621,0.4302,4294.6,4294.5,0.93841031]
[1755757498828,0.8784,4294.6,4294.5,3.589]
[1755757499333,0.1168,4294.6,4294.5,3.589]
[1755757499534,0.1168,4294.6,4294.5,3.8978]
[1755757500245,0.1168,4294.6,4294.5,3.92108559]
[1755757500449,0.1168,4294.6,4294.5,4.2093]
[1755757500610,0.1168,4294.6,4294.5,5.70948478]
[1755757500814,0.1168,4294.6,4294.5,5.39798478]
[1755757501044,0.1168,4294.6,4294.5,1.50018478]
[1755757501250,0.1168,4294.6,4294.5,5.08918478]
[1755757501416,0.1168,4294.6,4294.5,3.589]
[1755757503448,0.1168,4294.6,4294.5,3.8978]
[1755757506131,0.1168,4294.6,4294.5,6.8978]
[1755757506331,0.002,4295.3,4294.5,7.2093]
[1755757506556,0.1168,4294.8,4294.6,3.02328505]
[1755757506715,0.1168,4294.8,4294.7,4.31225851]
[1755757506916,0.1168,4294.8,4294.7,3.589]
[1755757507749,0.4302,4294.8,4294.7,3.589]
[1755757508052,0.1168,4294.8,4294.7,3.589]
[1755757509645,0.1168,4294.8,4294.7,3.8978]
[1755757509954,0.1168,4294.8,4294.7,3.589]
[1755757510121,0.1168,4294.8,4294.7,4.70941141]
[1755757511357,0.1168,4294.8,4294.7,5.01971141]
[1755757511734,0.1168,4294.8,4294.7,15.63482546]
[1755757515263,0.1168,4294.8,4294.7,15.32452546]
[1755757515848,0.8828,4294.8,4294.7,15.32452546]
[1755757517767,0.8828,4294.8,4294.7,7.70941141]
[1755757517974,0.8828,4294.8,4294.7,6.589]
[1755757518344,0.8828,4294.8,4294.7,3.587]
[1755757518977,0.8828,4294.8,4293.8,0.021]
[1755757519284,0.4745,4294.7,4293.9,3.587]
[1755757519572,0.4083,4294.0,4293.9,3.587]
[1755757519953,0.1168,4294.0,4293.9,3.587]
[1755757520551,0.1168,4294.0,4293.9,3.8973]
[1755757521059,0.1168,4294.0,4293.9,3.587]
[1755757522076,0.1168,4294.0,4293.9,3.8973]
[1755757522457,0.1168,4294.0,4293.9,3.587]
[1755757523753,0.1168,4294.0,4293.9,5.02204034]
[1755757524058,0.1168,4294.0,4293.9,8.02204034]
[1755757525191,0.1168,4294.0,4293.9,7.71174034]
[1755757526591,0.1168,4294.0,4293.9,8.02204034]
[1755757528503,0.1168,4294.0,4293.9,8.33354034]
[1755757528678,0.1168,4294.0,4293.9,4.43504034]
[1755757528884,0.1168,4294.0,4293.9,14.51241405]
[1755757530407,0.1168,4294.4,4294.0,3.0]
[1755757530708,0.1168,4294.4,4294.3,7.92541405]
[1755757530911,0.1168,4294.4,4294.3,11.51241405]
[1755757531124,0.1168,4294.4,4294.3,14.51241405]
[1755757531296,0.1168,4294.6,4294.4,3.0]
[1755757531483,0.1168,4294.6,4294.5,14.51241405]
[1755757532516,0.1188,4294.8,4294.6,3.0]
[1755757532735,0.1188,4294.8,4294.7,6.91958451]
[1755757533020,0.002,4294.8,4294.7,7.2078]
[1755757533182,0.002,4294.8,4294.7,8.9346327]
[1755757534296,0.002,4294.8,4294.7,8.6231327]
[1755757541118,0.002,4294.8,4294.7,16.23824675]
[1755757543530,0.002,4294.8,4294.7,20.42824675]
[1755757552116,0.002,4294.8,4294.7,20.11794675]
[1755757552512,0.2996,4294.8,4294.7,8.9168327]
[1755757552730,0.2996,4294.8,4294.7,3.0]
[1755757552731,0.7614,4294.8,4294.7,3.0]
[1755757553048,0.8782,4294.8,4294.7,6.584]
[1755757555520,0.4164,4294.8,4294.7,6.584]
[1755757555735,0.8782,4294.8,4294.7,6.584]
[1755757560425,0.002,4294.8,4294.7,6.8877]
[1755757560755,0.002,4294.8,4294.7,8.33808141]
[1755757560937,0.002,4294.8,4294.7,8.43142241]
[1755757564170,0.002,4294.8,4294.7,12.62142241]
[1755757569176,0.7614,4294.8,4294.7,5.73372241]
[1755757569479,0.8782,4294.8,4294.7,7.772]
[1755757569678,0.8782,4294.8,4294.7,3.582]
[1755757569976,0.8782,4294.8,4294.7,6.582]
[1755757570185,0.8782,4294.8,4294.6,0.001]
[1755757570368,0.4164,4294.8,4294.7,3.582]
[1755757570952,0.8782,4294.8,4294.7,3.582]
[1755757571577,0.8782,4294.8,4294.7,3.581]
[1755757577160,0.1188,4294.8,4294.7,12.61582546]
[1755757577373,0.9004,4294.8,4294.6,0.001]
[1755757577571,0.9004,4294.8,4294.7,3.581]
[1755757577772,0.4715,4294.7,4294.6,0.001]
[1755757577973,0.7816,4294.7,4294.6,3.582]
[1755757580096,0.1188,4294.8,4294.6,3.8893]
[1755757580297,0.002,4294.8,4294.7,12.08883997]
[1755757580498,0.002,4294.8,4294.7,12.84635546]
[1755757580888,0.002,4294.8,4294.7,13.15785546]
[1755757581267,0.002,4294.8,4294.7,12.84635546]
[1755757581523,0.002,4294.8,4294.7,13.27465546]
[1755757583304,0.002,4294.8,4294.7,5.34804141]
[1755757583612,0.002,4294.8,4294.7,12.65585546]
[1755757583781,0.002,4294.8,4294.7,16.23585546]
[1755757583986,0.002,4294.8,4294.7,16.54315546]
[1755757587477,0.002,4294.8,4294.7,16.23585546]
[1755757587682,0.7836,4294.8,4294.7,16.23585546]
[1755757588382,0.7836,4294.8,4294.7,12.65585546]
[1755757588579,0.3121,4294.8,4294.7,16.23585546]
[1755757588805,0.7836,4294.8,4294.7,16.11905546]
[1755757589380,0.7836,4294.8,4294.7,14.66861405]
[1755757592500,0.002,4294.8,4294.7,14.66861405]
[1755757592781,0.7836,4294.8,4294.7,14.66861405]
[1755757592979,0.002,4294.8,4294.7,14.66861405]
[1755757593608,0.3121,4294.8,4294.7,14.66861405]
[1755757593816,0.3121,4294.8,4294.7,16.14725545]
[1755757594014,0.7836,4294.8,4294.7,16.14725545]
[1755757594197,0.7836,4294.8,4294.7,14.66861405]
[1755757594402,0.7836,4294.8,4294.7,11.08861405]
[1755757594611,0.7836,4294.8,4294.7,14.66761405]
[1755757594811,0.7836,4294.8,4294.7,7.0525]
[1755757595201,0.3121,4294.8,4294.7,7.0525]
[1755757595386,0.7836,4294.8,4294.7,7.0525]
[1755757598016,0.002,4294.8,4294.7,7.0525]
[1755757598222,0.002,4294.8,4294.7,7.76953]
[1755757600008,0.002,4294.8,4294.7,8.07683]
[1755757602235,0.2879,4294.8,4294.7,7.76953]
[1755757602400,0.7175,4294.8,4294.7,7.76953]
[1755757602601,0.002,4294.8,4294.7,7.76953]
[1755757603760,0.002,4294.8,4294.7,8.05763]
[1755757604760,0.002,4294.8,4294.7,7.76953]
[1755757606948,0.7175,4294.8,4294.7,7.76953]
[1755757607147,0.7175,4294.8,4294.7,7.0525]
[1755757608761,0.002,4294.8,4294.7,7.0525]
[1755757609822,0.002,4294.8,4294.7,7.3406]
[1755757611850,0.002,4294.8,4294.7,7.0525]
[1755757612066,0.2879,4294.8,4294.7,7.0525]
[1755757612264,0.7175,4294.8,4294.7,7.0525]
[1755757615171,0.002,4294.8,4294.7,7.0525]
[1755757615370,0.002,4294.8,4294.7,8.81914141]
[1755757616256,0.7175,4294.8,4294.7,8.53104141]
[1755757616456,0.7175,4294.8,4294.7,7.0525]
[1755757616963,0.7175,4294.8,4294.7,7.0495]
[1755757618664,0.002,4294.8,4294.7,7.3376]
[1755757618873,0.002,4294.8,4294.7,7.0495]
[1755757619100,0.002,4294.8,4294.7,14.66461405]
[1755757619386,0.002,4294.8,4294.7,16.14285546]
[1755757619556,0.002,4294.8,4294.7,16.43095546]
[1755757622970,0.002,4294.8,4294.7,16.14285546]
[1755757623475,0.002,4294.8,4294.7,16.43095546]
[1755757624976,0.002,4294.8,4294.7,8.52774141]
[1755757625178,0.7175,4294.8,4294.7,8.52774141]
[1755757625579,0.2879,4294.8,4294.7,8.52774141]
[1755757625760,0.002,4294.8,4294.7,8.81584141]
[1755757626680,0.002,4294.8,4294.7,9.24414141]
[1755757626879,0.002,4294.8,4294.7,14.09414141]
[1755757627081,0.002,4294.8,4294.7,13.78264141]
[1755757627257,0.002,4294.8,4294.7,16.42259275]
[1755757629886,0.002,4295.3,4295.2,2.98818029]
[1755757630085,0.002,4295.3,4295.2,18.56681994]
[1755757630403,0.002,4295.3,4295.2,18.97183814]
[1755757630758,0.002,4295.3,4295.2,19.06514914]
[1755757632189,0.002,4295.7,4295.6,2.98796349]
[1755757632375,0.002,4295.7,4295.6,17.46387754]
[1755757632588,0.002,4295.7,4295.6,20.14721924]
[1755757634369,0.002,4295.7,4295.6,19.83571924]
[1755757634892,0.002,4295.7,4295.6,16.26171924]
[1755757635092,0.002,4295.7,4295.6,19.83471924]
[1755757635257,0.002,4295.7,4295.6,17.68026924]
[1755757635692,0.002,4295.7,4295.6,20.00823273]
[1755757636287,0.002,4295.7,4295.6,17.68026924]
[1755757636551,0.002,4295.7,4295.6,20.00823273]
[1755757637365,0.002,4295.7,4295.6,20.10153773]
[1755757639294,0.002,4295.7,4295.6,20.41303773]
[1755757639587,0.002,4295.7,4295.6,20.10153773]
[1755757642909,0.002,4295.7,4295.6,20.41303773]
[1755757643593,0.02167206,4295.8,4295.7,5.3279093]
[1755757643795,0.02167206,4295.8,4295.7,7.97684893]
[1755757643999,0.02167206,4295.8,4295.7,12.16684893]
[1755757644393,0.02167206,4295.8,4295.7,11.88004893]
[1755757644599,0.02167206,4295.8,4295.7,15.39784893]
[1755757645011,0.02167206,4295.8,4295.7,15.49113993]
[1755757645209,0.02167206,4295.8,4295.7,15.80263993]
[1755757645407,0.02167206,4295.8,4295.7,15.49113993]
[1755757646825,0.02167206,4295.8,4295.7,19.06213993]
[1755757647517,161.0,4300.0,4296.6,2.98742168]
[1755757647716,161.0,4300.0,4296.6,14.02549179]
[1755757647717,0.4401,4297.0,4296.6,14.02549179]
[1755757647933,0.29,4296.7,4296.6,14.14149179]
[1755757648120,0.7301,4296.7,4296.6,14.25817279]
[1755757648433,0.002,4296.7,4296.6,14.35145679]
[1755757648731,0.7301,4296.7,4296.6,14.35145679]
[1755757648934,0.002,4296.7,4296.6,14.35145679]
[1755757649124,0.136,4297.8,4296.7,5.98736751]
[1755757649125,0.4401,4297.1,4296.7,5.98736751]
[1755757649335,0.4401,4297.1,4296.7,8.34950714]
[1755757649531,0.31,4296.8,4296.7,6.02213963]
[1755757649849,0.7501,4296.8,4296.7,8.34950714]
[1755757650138,0.022,4296.8,4296.7,8.34950714]